bitfinex-derivatives/quotes_SOLF0:USTF0_20250630
["timestamp","ask_amount","ask_price","bid_price","bid_amount"]
[1751297936402,25.2899421,156.72,156.55,576.895]
[1751297936695,25.2899421,156.68,156.55,574.8]
[1751297936890,25.2899421,156.68,156.47,576.8047]
[1751297937095,574.72,156.67,156.47,576.8047]
[1751297937297,25.2899421,156.64,156.47,574.72]
[1751297937502,5.172313,156.63,156.47,574.72]
[1751297937797,25.2899421,156.74,156.5,25.2899421]
[1751297938001,25.2899421,156.7,156.5,25.2899421]
[1751297938199,5.17803422,156.69,156.57,6.3852]
[1751297938399,25.2899421,156.66,156.47,574.72]
[1751297938699,25.2899421,156.73,156.5,25.2899421]
[1751297938902,25.2899421,156.69,156.5,25.2899421]
[1751297939200,5.18060004,156.68,156.5,25.2899421]
[1751297939496,5.18060004,156.68,156.48,200.8]
[1751297939692,25.2899421,156.65,156.47,574.72]
[1751297939895,7.74946923,156.73,156.48,2755.08]
[1751297940092,25.25652015,156.88,156.48,2755.08]
[1751297940093,29.5307421,156.88,156.65,25.2899421]
[1751297940298,4.2408,156.88,156.61,201.36]
[1751297940490,25.2899421,156.81,156.61,201.36]
[1751297940699,574.7,156.82,156.61,226.6499421]
[1751297940897,6.3759,156.81,156.69,6.3801]
[1751297941100,2554.3,156.95,156.66,25.2899421]
[1751297941296,4.3008,156.92,156.7,25.2899421]
[1751297941499,579.0008,156.92,156.83,6.3747]
[1751297941701,579.0008,156.92,156.74,25.2899421]
[1751297941898,579.0008,156.92,156.83,6.3745]
[1751297942092,579.0008,156.92,156.74,25.2899421]
[1751297942302,25.2899421,156.89,156.69,25.2899421]
[1751297942496,25.2899421,156.85,156.65,25.2899421]
[1751297942695,25.2899421,156.85,156.64,64.0117]
[1751297942906,25.2899421,156.85,156.59,574.56]
[1751297942907,2.0837,156.84,156.59,574.56]
[1751297943107,2.0837,156.84,156.67,6.3809]
[1751297943293,2.0837,156.84,156.6,25.2899421]
[1751297943501,25.2899421,156.81,156.59,574.56]
[1751297943804,25.2899421,156.73,156.5,574.56]
[1751297943998,576.6437,156.72,156.5,574.56]
[1751297944596,25.2899421,156.68,156.46,25.2899421]
[1751297944800,4.3182,156.67,156.46,25.2899421]
[1751297945598,25.2899421,156.64,156.42,226.3699421]
[1751297945800,25.2899421,156.64,156.44,6.3906]
[1751297945998,25.2899421,156.6,156.36,64.0117]
[1751297946204,4.3182,156.67,156.32,574.54]
[1751297946205,25.2899421,156.52,156.32,574.54]
[1751297946404,2.1618,156.51,156.3,25.2899421]
[1751297946602,2.1618,156.51,156.25,2.0117]
[1751297946907,2.1618,156.51,156.35,25.2899421]
[1751297947501,6.3889,156.49,156.35,25.2899421]
[1751297947698,2.1618,156.51,156.34,574.54]
[1751297947897,6.3907,156.44,156.36,6.3939]
[1751297948103,2.1618,156.51,156.34,574.54]
[1751297948607,2.1618,156.51,156.31,25.2899421]
[1751297948799,25.2899421,156.49,156.27,25.2899421]
[1751297949000,2.1618,156.51,156.26,574.74]
[1751297949001,25.2899421,156.45,156.29,6.3967]
[1751297949211,25.2899421,156.45,156.26,574.74]
[1751297949212,574.74,156.44,156.26,574.74]
[1751297949903,25.2899421,156.41,156.21,25.2899421]
[1751297950105,25.2899421,156.41,155.99,19.2271]
[1751297950106,25.2899421,156.37,156.13,2.0204]
[1751297950409,25.2899421,156.37,156.15,25.2899421]
[1751297950611,25.2899421,156.33,156.13,2.0204]
[1751297950810,574.74,156.33,156.15,25.2899421]
[1751297951009,574.74,156.33,156.13,203.1804]
[1751297951198,574.74,156.33,156.15,25.2899421]
[1751297951804,4.5018,156.36,156.19,25.2899421]
[1751297952004,2.2737,156.36,156.17,25.2899421]
[1751297952204,25.2899421,156.32,156.13,2.0204]
[1751297952405,600.2899421,156.32,156.13,2.0204]
[1751297952608,600.2899421,156.32,156.1,600.0299421]
[1751297952804,2.2387,156.31,156.11,62.0]
[1751297953303,2.2387,156.31,156.11,200.9]
[1751297953708,2.2387,156.31,156.14,25.2899421]
[1751297953912,575.0,156.32,156.18,25.2899421]
[1751297954104,2.2737,156.36,156.18,25.2899421]
[1751297954809,575.32,156.4,156.11,200.9]
[1751297954810,575.32,156.4,156.22,25.2899421]
[1751297955011,575.32,156.4,156.23,575.32]
[1751297955211,6.3931,156.38,156.3,6.3961]
[1751297955414,575.32,156.4,156.23,575.32]
[1751297955607,575.32,156.49,156.3,25.2899421]
[1751297955817,575.32,156.49,156.33,15.09233466]
[1751297956108,575.32,156.49,156.24,2.0324]
[1751297956306,6.3911,156.43,156.31,15.09233466]
[1751297956506,15.09233466,156.47,156.29,15.09233466]
[1751297956708,575.32,156.49,156.29,15.09233466]
[1751297956900,575.32,156.49,156.32,15.09233466]
[1751297957101,15.09233466,156.49,156.32,15.09233466]
[1751297957413,15.09233466,156.51,156.35,15.09233466]
[1751297958312,6.3906,156.45,156.35,15.09233466]
[1751297958513,15.09233466,156.51,156.35,15.09233466]
[1751297958710,6.3907,156.45,156.39,6.3926]
[1751297958908,15.09233466,156.51,156.35,15.09233466]
[1751297959111,15.09233466,156.48,156.25,201.0]
[1751297959417,6.3911,156.43,156.31,15.09233466]
[1751297959615,15.09233466,156.48,156.31,15.09233466]
[1751297960014,201.02,156.52,156.24,2.0324]
[1751297960216,15.09233466,156.46,156.28,15.09233466]
[1751297960515,15.09233466,156.48,156.31,15.09233466]
[1751297960909,15.09233466,156.48,156.24,2.0324]
[1751297960910,4.1958,156.54,156.37,15.09233466]
[1751297961113,15.09233466,156.53,156.36,15.09233466]
[1751297961313,15.09233466,156.5,156.32,575.38]
[1751297961619,6.3899,156.46,156.4,6.3923]
[1751297961810,2.1716,156.56,156.34,15.09233466]
[1751297962016,17.26393466,156.56,156.4,15.09233466]
[1751297962518,15.09233466,156.5,156.34,15.09233466]
[1751297962708,15.09233466,156.47,156.32,590.47233466]
[1751297962911,15.09233466,156.47,156.35,6.3943]
[1751297963110,575.34,156.48,156.32,590.47233466]
[1751297963318,575.34,156.48,156.35,15.09233466]
[1751297963710,19.132,156.77,156.41,15.09233466]
[1751297964019,15.09233466,156.57,156.41,15.09233466]
[1751297964219,2.2752,156.56,156.41,15.09233466]
[1751297964413,15.09233466,156.54,156.38,15.09233466]
[1751297964814,6.3881,156.51,156.38,15.09233466]
[1751297965014,17.36753466,156.56,156.38,15.09233466]
[1751297965310,2.2752,156.56,156.32,575.38]
[1751297965516,17.36753466,156.56,156.4,15.09233466]
[1751297966817,2.2752,156.56,156.4,15.09233466]
[1751297967114,6.3873,156.53,156.43,15.09233466]
[1751297967320,2.2752,156.56,156.43,15.09233466]
[1751297967513,2.2752,156.56,156.45,6.3899]
[1751297967712,2.2752,156.56,156.4,15.09233466]
[1751297967911,2.2752,156.56,156.43,15.09233466]
[1751297968616,6.3863,156.55,156.5,6.3879]
[1751297968917,6.3863,156.55,156.42,575.28]
[1751297968918,2.2752,156.56,156.46,15.09233466]
[1751297969320,8.6613,156.56,156.51,6.3876]
[1751297969715,2.2752,156.56,156.46,15.09233466]
[1751297970321,6.3855,156.57,156.46,15.09233466]
[1751297970718,4.4024,156.61,156.46,15.09233466]
[1751297971215,4.4024,156.61,156.42,575.28]
[1751297971216,7.78169574,156.72,156.49,15.09233466]
[1751297971417,7.78169574,156.79,156.64,15.09233466]
[1751297971721,15.09233466,156.8,156.64,15.09233466]
[1751297972221,15.09233466,156.78,156.62,15.09233466]
[1751297972425,15.09233466,156.75,156.61,575.12]
[1751297972625,15.09233466,156.72,156.53,2.0228]
[1751297972919,15.09233466,156.66,156.48,15.09233466]
[1751297973124,2.1645,156.65,156.48,15.09233466]
[1751297973318,6.3839,156.61,156.54,6.3863]
[1751297973618,6.3839,156.61,156.51,15.09233466]
[1751297973818,2.1645,156.65,156.54,15.09233466]
[1751297974223,8.5469,156.65,156.59,6.3843]
[1751297974432,2.2166,156.7,156.57,15.09233466]
[1751297974620,2.2166,156.7,156.6,15.09233466]
[1751297974824,15.09233466,156.66,156.52,575.12]
[1751297975024,2.2067,156.71,156.52,575.12]
[1751297975025,15.09233466,156.68,156.52,575.12]
[1751297975219,2.0679,156.7,156.52,575.12]
[1751297975220,2.0679,156.7,156.55,15.09233466]
[1751297975423,2.0679,156.7,156.58,15.09233466]
[1751297975823,6.3832,156.63,156.57,6.3852]
[1751297976017,2.0679,156.7,156.55,15.09233466]
[1751297976419,2.0679,156.7,156.57,6.3853]
[1751297976619,2.0679,156.7,156.53,15.09233466]
[1751297976815,15.09233466,156.65,156.52,575.0]
[1751297977024,2.0679,156.7,156.52,575.0]
[1751297977222,2.0679,156.7,156.54,15.09233466]
[1751297977417,6.3833,156.63,156.54,15.09233466]
[1751297977619,2.0679,156.7,156.54,15.09233466]
[1751297978023,2.0679,156.7,156.57,15.09233466]
[1751297978219,17.16023466,156.7,156.58,574.9]
[1751297978523,6.3832,156.63,156.58,574.9]
[1751297978828,17.16023466,156.7,156.58,574.9]
[1751297979022,2.0679,156.7,156.58,574.9]
[1751297979327,7.18847142,156.7,156.57,574.9]
[1751297979525,6.383,156.63,156.59,6.3845]
[1751297979929,2.0679,156.7,156.57,574.9]
[1751297980126,2.0679,156.7,156.57,589.99233466]
[1751297980423,7.18920069,156.7,156.57,589.99233466]
[1751297980627,2.0679,156.7,156.57,589.99233466]
[1751297980822,2.0679,156.7,156.57,574.9]
[1751297981029,2.0679,156.7,156.6,6.3841]
[1751297981222,2.0679,156.7,156.57,574.9]
[1751297981928,7.32792594,156.71,156.57,589.99233466]
[1751297982125,7.32792594,156.71,156.57,574.9]
[1751297982126,15.09233466,156.7,156.57,574.9]
[1751297982321,15.09233466,156.7,156.54,15.09233466]
[1751297982822,15.09233466,156.7,156.55,574.78]
[1751297983128,6.383,156.63,156.59,6.3845]
[1751297983323,2.2067,156.71,156.56,574.78]
[1751297983724,15.09233466,156.7,156.56,574.78]
[1751297984223,2.186,156.72,156.58,15.09233466]
[1751297984631,2.186,156.72,156.56,574.78]
[1751297984830,15.09233466,156.7,156.56,574.78]
[1751297985022,15.09233466,156.7,156.48,12.7779]
[1751297985023,15.09233466,156.67,156.51,15.09233466]
[1751297985220,15.09233466,156.64,156.51,574.74]
[1751297985434,15.09233466,156.61,156.46,2.018]
[1751297985626,15.09233466,156.61,156.45,15.09233466]
[1751297985824,15.09233466,156.61,156.46,574.74]
[1751297986029,15.09233466,156.58,156.46,574.74]
[1751297986326,15.09233466,156.58,156.43,574.74]
[1751297986927,15.09233466,156.58,156.45,6.39]
[1751297987131,5.13588901,156.57,156.43,574.74]
[1751297987533,15.09233466,156.59,156.43,589.83233466]
[1751297988137,15.09233466,156.56,156.43,574.74]
[1751297988441,15.09233466,156.53,156.43,574.74]
[1751297988733,15.09233466,156.53,156.36,2.018]
[1751297988734,15.09233466,156.53,156.36,17.11033466]
[1751297988928,15.09233466,156.5,156.37,574.8]
[1751297989125,15.09233466,156.5,156.32,15.09233466]
[1751297989331,15.09233466,156.47,156.32,574.8]
[1751297989528,4.348,156.49,156.32,574.8]
[1751297989529,15.09233466,156.44,156.32,574.8]
[1751297990027,15.09233466,156.41,156.12,2555.22]
[1751297990237,15.09233466,156.43,156.21,12.8001]
[1751297990427,15.09233466,156.43,156.26,15.09233466]
[1751297990640,15.09233466,156.43,156.29,15.09233466]
[1751297990828,6.3907,156.44,156.39,6.3925]
[1751297991028,21.72093466,156.49,156.32,15.09233466]
[1751297991432,15.09233466,156.44,156.27,62.0]
[1751297991733,15.09233466,156.47,156.3,574.92]
[1751297991933,6.3934,156.38,156.33,6.395]
[1751297992131,15.09233466,156.44,156.29,574.92]
[1751297992541,15.09233466,156.44,156.34,6.3945]
[1751297992743,6.6286,156.49,156.29,574.92]
[1751297992937,6.3934,156.38,156.34,6.3947]
[1751297993242,15.09233466,156.44,156.29,574.92]
[1751297994542,6.3934,156.38,156.33,6.3951]
[1751297994739,15.09233466,156.44,156.29,574.92]
[1751297995241,15.09233466,156.41,156.29,574.92]
[1751297995647,15.09233466,156.38,156.15,12.8049]
[1751297995832,15.09233466,156.38,156.23,575.2]
[1751297996743,6.3955,156.33,156.28,6.3969]
[1751297996948,12.48601276,156.49,156.29,215.39233466]
[1751297997139,6.3927,156.4,156.35,6.394]
[1751297997338,15.09233466,156.36,156.23,575.2]
[1751297997737,6.3948,156.34,156.23,575.2]
[1751297997936,15.09233466,156.36,156.23,575.2]
[1751297998242,6.3998,156.22,156.17,6.4014]
[1751297998537,6.3998,156.22,156.06,112.54100777]
[1751297998538,15.09233466,156.26,156.1,15.09233466]
[1751297998738,15.09233466,156.26,156.07,64.0313]
[1751297998944,15.09233466,156.2,156.07,2.0313]
[1751297999145,15.09233466,156.2,156.05,575.2]
[1751297999545,15.09233466,156.17,156.05,575.2]
[1751298000045,32.066,156.27,156.05,575.2]
[1751298000046,15.09233466,156.19,156.05,575.2]
[1751298000242,5.85741276,156.28,156.05,575.2]
[1751298000448,5.85741276,156.3,156.1,15.09233466]
[1751298000744,20.94974742,156.32,156.13,15.09233466]
[1751298000944,5.85741276,156.33,156.16,15.09233466]
[1751298001247,5.85741276,156.33,156.17,775.62]
[1751298001446,15.09233466,156.3,156.17,575.36]
[1751298001746,15.09233466,156.33,156.17,575.36]
[1751298001937,4.2454,156.34,156.29,6.3967]
[1751298002138,5.85741276,156.4,156.16,62.0]
[1751298002336,200.32,156.5,156.26,15.09233466]
[1751298002337,6.393,156.39,156.26,15.09233466]
[1751298002541,19.62023466,156.42,156.27,775.86]
[1751298002841,6.3916,156.42,156.32,15.09233466]
[1751298003034,15.09233466,156.43,156.28,2.0387]
[1751298003241,2.2792,156.48,156.28,2.0387]
[1751298003449,15.09233466,156.45,156.28,2.0387]
[1751298003948,6.3928,156.39,156.34,6.3945]
[1751298004253,15.09233466,156.44,156.27,590.63233466]
[1751298004746,15.09233466,156.41,156.27,590.63233466]
[1751298004949,15.09233466,156.38,156.21,2.0387]
[1751298005151,15.09233466,156.38,156.31,6.3957]
[1751298005446,15.09233466,156.35,156.21,2.0387]
[1751298005646,6.3977,156.27,156.22,6.3994]
[1751298005848,15.09233466,156.32,156.19,575.52]
[1751298007243,6.3979,156.27,156.22,6.3994]
[1751298007437,15.09233466,156.32,156.19,575.52]
[1751298007636,2.1039,156.33,156.19,575.52]
[1751298008042,2.1944,156.34,156.2,215.37233466]
[1751298008238,2.1944,156.34,156.2,200.28]
[1751298008239,15.09233466,156.33,156.2,200.28]
[1751298008445,15.09233466,156.32,156.18,575.66]
[1751298008644,15.09233466,156.32,156.19,575.66]
[1751298009143,15.09233466,156.29,156.19,575.66]
[1751298009639,2.1944,156.34,156.19,575.66]
[1751298009640,15.09233466,156.31,156.19,575.66]
[1751298010041,17.28673466,156.34,156.19,575.66]
[1751298010243,17.28673466,156.34,156.13,62.0]
[1751298010244,15.09233466,156.31,156.13,62.0]
[1751298010442,15.09233466,156.28,156.13,575.66]
[1751298011242,2.1944,156.34,156.14,15.09233466]
[1751298011243,15.09233466,156.31,156.14,15.09233466]
[1751298011441,6.3973,156.28,156.14,15.09233466]
[1751298011739,15.09233466,156.31,156.14,15.09233466]
[1751298012045,6.3991,156.24,156.14,15.09233466]
[1751298012238,15.09233466,156.28,156.14,15.09233466]
[1751298012942,15.09233466,156.28,156.09,14.8482]
[1751298012943,15.09233466,156.28,156.09,2.0387]
[1751298013147,15.09233466,156.25,156.1,775.96]
[1751298013543,15.09233466,156.3,156.12,15.09233466]
[1751298013736,15.09233466,156.27,156.1,791.05233466]
[1751298013938,15.09233466,156.21,156.1,575.76]
[1751298014250,15.09233466,156.21,156.06,15.09233466]
[1751298014251,15.09233466,156.21,156.06,575.84]
[1751298014649,15.09233466,156.22,156.06,590.93233466]
[1751298014948,15.09233466,156.22,156.06,575.84]
[1751298015338,15.09233466,156.22,156.08,15.09233466]
[1751298015639,17.18233466,156.25,156.11,15.09233466]
[1751298015839,17.18233466,156.25,156.12,200.18]
[1751298016747,6.4008,156.2,156.08,15.09233466]
[1751298017346,6.4008,156.2,156.16,6.4018]
[1751298017539,2.1822,156.26,156.11,15.09233466]
[1751298017738,15.09233466,156.24,156.08,575.92]
[1751298017939,15.09233466,156.24,156.14,6.4029]
[1751298018145,15.09233466,156.24,156.08,575.92]
[1751298018745,6.4013,156.19,156.08,575.92]
[1751298018949,15.09233466,156.18,155.99,2.0352]
[1751298019248,15.09233466,156.18,156.01,15.09233466]
[1751298019449,15.09233466,156.18,156.1,6.4043]
[1751298019651,6.4037,156.13,156.01,15.09233466]
[1751298019846,15.09233466,156.18,156.01,15.09233466]
[1751298020143,15.09233466,156.18,156.02,576.02]
[1751298020451,15.09233466,156.18,156.11,6.4038]
[1751298020745,15.09233466,156.15,156.02,576.02]
[1751298021643,15.09233466,156.12,156.05,6.4064]
[1751298021844,15.09233466,156.12,155.98,576.02]
[1751298022046,15.09233466,156.12,155.98,591.11233466]
[1751298022246,6.403,156.14,156.01,15.09233466]
[1751298022446,2.1119,156.22,156.04,15.09233466]
[1751298022748,2.1119,156.22,156.05,200.04]
[1751298022945,2.1119,156.22,156.05,212.8532]
[1751298023140,15.09233466,156.2,156.05,212.8532]
[1751298023341,15.09233466,156.2,156.04,15.09233466]
[1751298023747,15.09233466,156.17,156.08,6.4051]
[1751298023949,15.09233466,156.18,156.02,15.09233466]
[1751298024448,2.1822,156.26,156.03,6.06849656]
[1751298024748,17.27453466,156.26,156.1,15.09233466]
[1751298024943,17.27453466,156.26,156.11,576.2]
[1751298025150,15.09233466,156.23,156.11,576.2]
[1751298025345,15.09233466,156.25,156.05,576.2]
[1751298025649,15.09233466,156.22,156.07,15.09233466]
[1751298026045,6.4022,156.16,156.07,15.09233466]
[1751298026350,6.4022,156.16,156.05,576.2]
[1751298026351,2.1822,156.26,156.1,15.09233466]
[1751298026653,2.1822,156.26,156.13,15.09233466]
[1751298026853,15.09233466,156.25,156.09,215.07233466]
[1751298027055,6.4003,156.21,156.16,6.402]
[1751298027249,2.1822,156.26,156.13,15.09233466]
[1751298027647,6.3988,156.25,156.16,15.09233466]
[1751298027857,7.78169574,156.38,156.1,2.0386]
[1751298027858,2.1442,156.36,156.19,15.09233466]
[1751298028154,2.1442,156.36,156.22,6.3995]
[1751298028352,2.1442,156.36,156.19,15.09233466]
[1751298028549,2.1442,156.36,156.22,6.3993]
[1751298028854,2.1442,156.36,156.17,576.2]
[1751298029058,2.1442,156.36,156.19,15.09233466]
[1751298029355,15.09233466,156.35,156.19,15.09233466]
[1751298030252,15.09233466,156.3,156.14,15.09233466]
[1751298030558,15.09233466,156.27,156.11,15.09233466]
[1751298030749,15.09233466,156.27,156.12,6.10753401]
[1751298030951,17.35113466,156.29,156.14,15.09233466]
[1751298031458,2.2588,156.29,156.17,15.09233466]
[1751298031655,2.1442,156.36,156.2,15.09233466]
[1751298031858,2.1442,156.36,156.23,15.09233466]
[1751298032259,4.502,156.37,156.23,15.09233466]
[1751298032458,4.502,156.37,156.24,6.11033621]
[1751298032652,4.502,156.37,156.23,15.09233466]
[1751298032959,2.2432,156.37,156.26,15.09233466]
[1751298033155,2.1325,156.41,156.27,6.10920725]
[1751298033353,6.3943,156.36,156.31,6.3959]
[1751298033555,2.1325,156.41,156.26,15.09233466]
[1751298033748,2.1325,156.41,156.27,6.11508973]
[1751298033957,2.1325,156.41,156.28,6.11508973]
[1751298034258,2.1325,156.41,156.29,6.11982856]
[1751298034461,6.3952,156.33,156.26,15.09233466]
[1751298034656,2.1325,156.41,156.27,6.11813576]
[1751298034863,2.1325,156.41,156.28,6.11813576]
[1751298035161,6.3939,156.37,156.32,6.3952]
[1751298035354,15.09233466,156.44,156.32,6.3952]
[1751298035355,7.92751276,156.45,156.32,15.09233466]
[1751298035550,2.0701,156.45,156.33,6.11326813]
[1751298035858,17.18243466,156.5,156.35,15.09233466]
[1751298035859,23.03984742,156.5,156.35,15.09233466]
[1751298036060,2.0901,156.5,156.36,6.11326813]
[1751298036248,15.09233466,156.49,156.37,6.11326813]
[1751298036452,20.94974742,156.49,156.3,576.0]
[1751298036654,20.94974742,156.49,156.32,15.09233466]
[1751298036854,5.85741276,156.48,156.34,6.3943]
[1751298037060,15.09233466,156.49,156.35,21.2022489]
[1751298037061,5.85741276,156.49,156.35,21.2022489]
[1751298037250,2.0901,156.5,156.36,6.10991424]
[1751298037453,6.3911,156.44,156.39,6.3926]
[1751298037849,2.0838,156.51,156.38,15.09233466]
[1751298038052,2.0838,156.51,156.39,6.1033423]
[1751298038360,2.0838,156.51,156.38,15.09233466]
[1751298038553,6.3906,156.45,156.4,6.3922]
[1751298038759,2.0838,156.51,156.38,15.09233466]
[1751298038953,8.04101276,156.55,156.39,6.09979492]
[1751298039259,6.3887,156.49,156.44,6.3906]
[1751298039660,2.1836,156.55,156.41,15.09233466]
[1751298039854,11.4497454,156.55,156.42,15.35934259]
[1751298040056,11.4497454,156.55,156.4,585.0861454]
[1751298040254,9.2661454,156.52,156.34,575.82]
[1751298040455,5.85741276,156.54,156.39,9.2661454]
[1751298040657,6.3898,156.47,156.42,6.3914]
[1751298040858,9.2661454,156.53,156.39,9.2661454]
[1751298041455,9.2661454,156.5,156.36,9.2661454]
[1751298041658,9.2661454,156.47,156.34,575.82]
[1751298041851,9.2661454,156.47,156.33,11.2995454]
[1751298041852,6.3919,156.41,156.33,11.2995454]
[1751298042056,9.2661454,156.44,156.33,2.0334]
[1751298042360,9.2661454,156.44,156.32,575.6]
[1751298042563,2.2224,156.46,156.32,575.6]
[1751298042564,2.2224,156.46,156.34,9.2661454]
[1751298043355,2.2224,156.46,156.36,6.3936]
[1751298043557,2.2224,156.46,156.33,9.2661454]
[1751298044161,9.2661454,156.47,156.36,9.2661454]
[1751298044563,6.3908,156.44,156.39,6.3924]
[1751298044860,5.85741276,156.56,156.4,6.08088902]
[1751298045165,11.67777603,156.61,156.32,575.6]
[1751298045166,9.2661454,156.51,156.41,6.08088902]
[1751298045461,9.2661454,156.51,156.37,11.2965454]
[1751298045662,6.3902,156.46,156.41,6.3916]
[1751298046057,6.3902,156.46,156.37,11.2965454]
[1751298046058,9.2661454,156.51,156.37,11.2965454]
[1751298046260,6.3912,156.43,156.38,6.393]
[1751298046461,9.2661454,156.51,156.38,6.393]
[1751298046766,9.2661454,156.45,156.35,575.54]
[1751298046963,5.85741276,156.52,156.28,9.2661454]
[1751298046964,9.2661454,156.42,156.28,9.2661454]
[1751298047162,15.12355816,156.48,156.27,575.44]
[1751298047163,9.2661454,156.39,156.27,575.44]
[1751298047466,9.2661454,156.37,156.27,575.44]
[1751298047870,9.2661454,156.4,156.27,575.44]
[1751298048468,2.1855,156.41,156.28,9.2661454]
[1751298048865,2.1855,156.41,156.31,9.2661454]
[1751298049056,9.2661454,156.45,156.31,9.2661454]
[1751298049261,2.0816,156.47,156.34,9.2661454]
[1751298049662,9.2661454,156.45,156.34,9.2661454]
[1751298049868,9.2661454,156.45,156.31,9.2661454]
[1751298050062,6.3922,156.41,156.31,9.2661454]
[1751298050265,9.2661454,156.45,156.31,9.2661454]
[1751298050966,2.0816,156.47,156.34,9.2661454]
[1751298051158,2.0816,156.47,156.37,9.2661454]
[1751298051557,583.9047,156.54,156.37,9.2661454]
[1751298051558,4.92719403,156.78,156.46,18.5322908]
[1751298051761,575.48,156.94,156.4,19.22]
[1751298051762,15.57036805,156.97,156.71,9.2661454]
[1751298051962,9.2661454,156.85,156.7,584.7461454]
[1751298052164,4.4498,156.92,156.73,9.2661454]
[1751298052365,9.2661454,156.85,156.7,575.48]
[1751298052764,6.376,156.81,156.72,6.3789]
[1751298052969,9.2661454,156.82,156.7,575.48]
[1751298053159,9.2661454,156.79,156.62,575.2]
[1751298053359,9.2661454,156.76,156.67,6.3812]
[1751298053560,9.2661454,156.82,156.67,9.2661454]
[1751298053764,9.2661454,156.82,156.65,15.03318629]
[1751298053765,15.03318629,156.82,156.65,15.03318629]
[1751298053959,2.2064,156.83,156.68,15.03318629]
[1751298054162,2.2064,156.83,156.6,575.2]
[1751298054163,4.4498,156.92,156.67,198.52]
[1751298054369,4.4498,156.92,156.8,15.03318629]
[1751298054672,2.1897,156.92,156.8,15.03318629]
[1751298054872,2.1992,156.99,156.86,15.03318629]
[1751298055061,2.1992,156.99,156.89,15.03318629]
[1751298055265,17.10758629,157.05,156.89,15.03318629]
[1751298055566,17.10758629,157.05,156.84,15.03318629]
[1751298055567,15.03318629,157.01,156.84,15.03318629]
[1751298055767,15.03318629,157.01,156.79,773.66]
[1751298055768,15.03318629,156.95,156.81,15.03318629]
[1751298055963,15.03318629,156.95,156.79,590.23318629]
[1751298056168,15.03318629,156.92,156.79,575.2]
[1751298056468,6.3732,156.87,156.78,6.3764]
[1751298056669,15.03318629,156.89,156.75,15.03318629]
[1751298056861,15.03318629,156.89,156.69,62.0]
[1751298056862,15.03318629,156.86,156.72,15.03318629]
[1751298057262,17.18908629,156.91,156.74,15.03318629]
[1751298058572,15.03318629,156.89,156.74,15.03318629]
[1751298059080,15.03318629,156.86,156.71,589.75318629]
[1751298059268,2.1559,156.91,156.71,589.75318629]
[1751298059473,574.46,157.26,156.75,15.03318629]
[1751298059674,15.03318629,157.02,156.85,15.03318629]
[1751298059969,15.03318629,156.99,156.82,574.46]
[1751298060164,15.03318629,156.96,156.79,574.46]
[1751298060363,15.03318629,156.96,156.79,589.49318629]
[1751298060767,25.668,157.11,156.79,589.49318629]
[1751298060768,574.46,157.29,156.95,15.03318629]
[1751298060966,574.46,157.29,156.8,2553.2]
[1751298060967,6.502,157.28,157.08,15.03318629]
[1751298061171,15.03318629,157.26,157.09,15.03318629]
[1751298061974,15.03318629,157.2,157.11,6.3634]
[1751298062174,15.03318629,157.24,157.08,15.03318629]
[1751298062375,15.03318629,157.21,157.07,574.46]
[1751298062574,15.03318629,157.17,157.01,197.84]
[1751298062779,6.502,157.28,157.05,15.03318629]
[1751298062965,15.03318629,157.23,157.05,15.03318629]
[1751298063271,15.03318629,157.2,156.98,771.86]
[1751298063465,15.03318629,157.15,157.0,15.03318629]
[1751298063670,4.4901,157.27,156.98,574.04]
[1751298063671,19.52328629,157.27,157.09,15.03318629]
[1751298063874,15.03318629,157.24,157.08,15.03318629]
[1751298064072,15.03318629,157.24,157.07,574.04]
[1751298064377,15.03318629,157.23,157.07,574.04]
[1751298064972,15.03318629,157.2,157.07,574.04]
[1751298065169,15.03318629,157.14,156.98,15.03318629]
[1751298065471,4.4901,157.27,157.01,15.03318629]
[1751298065673,15.03318629,157.18,157.01,15.03318629]
[1751298066275,4.4901,157.27,156.97,573.64]
[1751298066579,15.03318629,157.19,157.02,15.03318629]